bitfinex/quotes_SOLUSD_20260114
["timestamp","ask_amount","ask_price","bid_price","bid_amount"]
[1768421215785,7.60513881,147.01,146.95,0.67571109]
[1768421215979,0.70270625,147.0,146.95,0.67571109]
[1768421217378,7.04759108,146.99,146.93,0.67571109]
[1768421217588,7.01759108,146.99,146.93,0.67571109]
[1768421218101,7.01759108,146.99,146.94,6.80521749]
[1768421218298,0.67270625,146.99,146.94,7.48106749]
[1768421218502,7.01759108,146.99,146.94,7.48106749]
[1768421218683,7.01759108,146.99,146.94,19.88106749]
[1768421218878,0.1,147.01,146.97,0.67571109]
[1768421219280,0.1,147.01,146.99,0.67571109]
[1768421219504,0.06999995,147.01,146.99,19.87877142]
[1768421219879,0.00999989,147.01,146.99,19.87877142]
[1768421220299,0.00999989,147.01,146.99,12.4]
[1768421220482,0.00999989,147.01,146.99,19.20315077]
[1768421220686,0.00999989,147.01,146.99,12.4]
[1768421221184,0.00999989,147.01,146.96,7.4798281]
[1768421221185,0.70270625,147.0,146.96,6.80411701]
[1768421221378,0.70270625,147.0,146.96,19.20411701]
[1768421221597,0.67270625,147.0,146.96,19.20411701]
[1768421221904,6.34488483,146.98,146.92,17.01555001]
[1768421222222,6.34488483,146.98,146.93,6.80587633]
[1768421222418,30.1544327,147.0,146.92,12.4]
[1768421222585,6.34488483,146.94,146.92,12.4]
[1768421222892,6.34488483,146.95,146.92,12.4]
[1768421223101,6.31488483,146.95,146.92,12.4]
[1768421223498,6.34488483,146.94,146.89,7.48352646]
[1768421223698,6.34488483,146.92,146.87,7.48442168]
[1768421223902,6.34488483,146.93,146.88,6.80814264]
[1768421224300,6.34488483,146.94,146.89,0.67571109]
[1768421224485,6.34488483,146.95,146.89,0.67571109]
[1768421224799,6.80410968,146.97,146.9,0.67571109]
[1768421224992,6.34488483,146.95,146.88,24.50455089]
[1768421225194,6.34488483,146.95,146.89,0.67571109]
[1768421225588,6.34488483,146.94,146.9,7.48306303]
[1768421225990,6.34488483,146.95,146.91,0.67571109]
[1768421226708,0.70270625,147.0,146.92,0.67571109]
[1768421226908,17.01614905,147.01,146.93,0.67571109]
[1768421226909,7.04759108,146.99,146.93,0.67571109]
[1768421227109,6.34488483,146.98,146.93,0.67571109]
[1768421227307,6.34488483,146.96,146.92,12.4]
[1768421227493,7.04759108,146.98,146.92,13.07571109]
[1768421228605,7.04759108,146.98,146.93,7.48167311]
[1768421228914,6.34488483,146.96,146.92,19.20636313]
[1768421229096,6.34488483,146.96,146.92,6.80636313]
[1768421229296,6.34488483,146.96,146.91,19.88246934]
[1768421229503,7.04759108,146.94,146.9,6.80723499]
[1768421229814,23.81276399,146.98,146.91,19.88237983]
[1768421229815,0.70270625,146.96,146.91,19.88237983]
[1768421230010,6.34488483,146.97,146.92,7.48201075]
[1768421230408,0.00999989,147.01,146.93,0.67571109]
[1768421230597,7.04759108,147.0,146.95,0.67571109]
[1768421230792,13.85044554,147.0,146.95,0.67571109]
[1768421231400,6.34488483,146.99,146.95,0.67571109]
[1768421232427,7.04759108,146.98,146.93,0.67571109]
[1768421232592,7.04759108,146.98,146.93,7.48163335]
[1768421232914,6.80281763,147.0,146.94,0.67571109]
[1768421233096,13.85040871,147.0,146.94,7.02059592]
[1768421233297,6.81240279,147.01,146.96,0.67571109]
[1768421233519,7.04759108,147.0,146.94,7.02059592]
[1768421233718,6.34488483,146.99,146.94,0.67571109]
[1768421234021,0.00999989,147.01,146.97,0.67571109]
[1768421234907,0.00999989,147.01,146.97,7.47967262]
[1768421236005,0.70270625,146.99,146.94,7.48080202]
[1768421236211,7.04759108,146.99,146.94,0.67571109]
[1768421236407,7.04759108,146.98,146.93,6.80582966]
[1768421236599,0.70270625,146.97,146.93,6.80582966]
[1768421236900,0.70270625,146.97,146.92,19.42059592]
[1768421236901,0.70270625,146.97,146.92,26.22687259]
[1768421237120,0.70270625,146.96,146.92,13.07571109]
[1768421237895,0.70270625,146.96,146.91,13.15160934]
[1768421238100,0.70270625,146.95,146.91,19.20672451]
[1768421238923,0.70270625,146.97,146.92,13.15128902]
[1768421239095,0.70270625,146.97,146.92,13.82700011]
[1768421239811,0.70270625,146.97,146.93,6.34488483]
[1768421240016,0.70270625,146.97,146.92,7.48211528]
[1768421240401,0.70270625,146.97,146.92,13.82700011]
[1768421240601,0.70270625,146.97,146.92,7.48211528]
[1768421240801,0.70270625,146.97,146.92,13.82700011]
[1768421241006,7.51250329,146.99,146.93,7.00767088]
[1768421241202,7.05401511,147.0,146.95,0.66278605]
[1768421241411,0.00999989,147.01,146.96,19.40767088]
[1768421241617,0.71913017,147.01,146.96,19.40767088]
[1768421241820,0.71913017,147.01,146.97,6.34488483]
[1768421242226,0.00999989,147.01,146.97,7.00767088]
[1768421242425,0.00999989,147.01,146.98,0.66278605]
[1768421243423,0.00999989,147.01,146.99,7.00767088]
[1768421244035,0.00999989,147.01,146.99,0.66278605]
[1768421244246,0.00999989,147.01,147.0,6.34488483]
[1768421245029,0.00999989,147.01,147.0,7.00767088]
[1768421245216,0.00999989,147.01,147.0,13.81039196]
[1768421245613,0.1,147.04,147.0,13.14760591]
[1768421245938,0.1,147.04,147.01,6.34488483]
[1768421246134,0.70913028,147.03,146.97,7.46674246]
[1768421246324,0.70913028,147.02,146.99,12.4]
[1768421246526,0.67913028,147.02,146.99,12.4]
[1768421246718,0.67913028,147.02,146.98,6.34488483]
[1768421246916,6.34488483,147.01,146.96,6.80424652]
[1768421247124,6.34488483,147.01,146.96,19.86703257]
[1768421247650,13.14637116,147.03,146.97,7.00767088]
[1768421248438,0.70913028,147.02,146.97,7.00767088]
[1768421248640,0.70913028,147.02,146.97,13.81171939]
[1768421249142,0.1,147.04,147.0,0.66278605]
[1768421249357,13.16029777,147.09,147.03,0.66278605]
[1768421249637,13.16029777,147.09,147.03,7.00767088]
[1768421249821,26.27388653,147.09,147.03,7.00767088]
[1768421250138,26.27388653,147.09,147.03,0.66278605]
[1768421250318,0.70913028,147.07,147.02,7.00767088]
[1768421250518,0.70913028,147.07,147.02,13.06278605]
[1768421250914,0.70913028,147.06,147.01,12.4]
[1768421251119,6.79958646,147.07,147.01,12.4]
[1768421251440,6.79914833,147.08,147.01,19.40767088]
[1768421251640,6.34488483,147.07,147.01,19.40767088]
[1768421251835,6.34488483,147.07,147.01,12.4]
[1768421252639,6.79953214,147.07,147.01,19.20186038]
[1768421252824,13.14441697,147.07,147.01,25.54674521]
[1768421253030,0.70913028,147.06,147.01,25.54674521]
[1768421254237,0.70913028,147.08,147.03,7.00767088]
[1768421254427,12.42116746,147.09,147.06,7.00767088]
[1768421254625,0.70913028,147.07,147.02,0.66278605]
[1768421254826,0.67913028,147.07,147.02,0.66278605]
[1768421255052,0.67913028,147.07,147.02,13.06278605]
[1768421255226,19.21980602,147.09,147.03,0.66278605]
[1768421255427,25.56469085,147.09,147.03,7.00767088]
[1768421255655,12.42116746,147.09,147.05,6.34488483]
[1768421255846,12.42116746,147.09,147.06,0.66278605]
[1768421256149,1e-08,147.09,147.07,7.00767088]
[1768421256850,1e-08,147.09,147.07,0.66278605]
[1768421257345,1e-08,147.09,147.05,24.46387377]
[1768421257547,0.70913029,147.09,147.04,13.14567994]
[1768421257756,0.70913029,147.09,147.05,6.80039331]
[1768421258055,0.70913029,147.09,147.05,13.14527814]
[1768421258420,0.70913029,147.09,147.06,6.34488483]
[1768421258626,0.70913029,147.09,147.05,13.14527814]
[1768421258827,0.70913029,147.09,147.05,6.34488483]
[1768421259029,13.85259164,147.09,147.04,7.46352153]
[1768421259247,0.70913028,147.08,147.03,13.1460814]
[1768421260134,0.70913028,147.08,147.04,6.34488483]
[1768421260850,0.70913028,147.07,147.02,13.14659617]
[1768421261355,0.70913028,147.05,147.01,19.20209495]
[1768421261556,0.67913028,147.05,147.01,19.20209495]
[1768421262758,6.79916106,147.08,147.02,10.29780028]
[1768421263255,1e-08,147.09,147.04,10.29780028]
[1768421263432,0.70913029,147.09,147.04,10.29780028]
[1768421263952,0.70913028,147.08,147.04,10.29780028]
[1768421264136,1e-08,147.09,147.06,10.96058633]
[1768421264344,1e-08,147.09,147.06,17.09746164]
[1768421264547,1e-08,147.09,147.06,6.79966136]
[1768421264754,0.70913029,147.09,147.05,6.80023812]
[1768421265053,0.70913028,147.08,147.04,6.80075471]
[1768421265445,0.70913028,147.08,147.03,17.76173579]
[1768421265758,0.70913028,147.08,147.05,6.8003908]
[1768421266342,0.70913028,147.08,147.04,6.80087051]
[1768421266541,0.70913028,147.08,147.04,17.09867079]
[1768421267436,1e-08,147.09,147.05,10.96058633]
[1768421267848,1e-08,147.09,147.06,10.96058633]
[1768421268156,1e-08,147.1,147.09,0.66278605]
[1768421268354,1e-08,147.1,147.09,17.75914503]
[1768421271462,0.70913028,147.14,147.09,17.75914503]
[1768421271644,0.70290655,147.15,147.1,10.9956798]
[1768421272262,0.70290655,147.15,147.1,0.69787952]
[1768421272456,0.70290655,147.15,147.11,10.29780028]
[1768421272844,0.70290655,147.15,147.1,10.9956798]
[1768421273361,0.70290655,147.13,147.08,19.19893622]
[1768421273660,0.70290655,147.13,147.08,13.09787952]
[1768421273844,0.70290655,147.13,147.09,10.29780028]
[1768421274243,0.70290655,147.15,147.1,10.9956798]
[1768421274567,0.70290655,147.15,147.11,10.29780028]
[1768421274761,0.70290655,147.16,147.11,10.9956798]
[1768421274961,0.70290655,147.16,147.11,17.79309927]
[1768421275363,0.70290655,147.16,147.11,7.49529899]
[1768421275554,0.70290655,147.16,147.11,17.79309927]
[1768421275750,0.70290655,147.16,147.13,10.29780028]
[1768421276358,0.1,147.17,147.13,10.29780028]
[1768421276664,0.80290655,147.17,147.12,0.69787952]
[1768421276861,0.70290655,147.15,147.11,10.29780028]
[1768421277667,0.70290655,147.14,147.09,6.79841769]
[1768421277865,0.70290655,147.14,147.09,17.09621797]
[1768421278059,0.70290655,147.13,147.08,13.09787952]
[1768421278259,0.70290655,147.12,147.08,12.4]
[1768421278975,0.70290655,147.12,147.08,22.69780028]
[1768421279348,0.70290655,147.12,147.08,12.4]
[1768421279664,11.00070683,147.14,147.09,10.29780028]
[1768421279869,0.70290655,147.13,147.09,10.29780028]
[1768421280246,0.70290655,147.1,147.05,17.69846704]
[1768421280458,0.70290655,147.09,147.05,6.80030432]
[1768421280749,0.70290655,147.07,147.04,12.4]
[1768421280952,0.67290656,147.07,147.04,19.20080376]
[1768421281266,23.78699801,147.14,147.05,0.69787952]
[1768421281443,10.29780028,147.11,147.06,6.7999456]
[1768421281645,10.29780028,147.11,147.05,17.79590165]
[1768421282473,10.29780028,147.1,147.05,7.49810137]
[1768421282674,10.29780028,147.1,147.05,17.79590165]
[1768421282858,11.00070683,147.1,147.05,17.79590165]
[1768421283169,11.00070683,147.1,147.04,29.40217627]
[1768421283170,0.70290655,147.07,147.03,19.20113501]
[1768421283371,0.70290655,147.07,147.01,0.69787952]
[1768421283577,0.70290655,147.09,147.04,0.69787952]
[1768421283746,11.00070683,147.09,147.04,0.69787952]
[1768421283951,0.70290655,147.08,147.03,10.9956798]
[1768421284150,0.70290655,147.1,147.05,10.29780028]
[1768421284370,0.70290655,147.1,147.04,10.9956798]
[1768421284371,11.00070683,147.1,147.04,10.9956798]
[1768421284562,11.00070683,147.1,147.02,19.20173555]
[1768421284563,0.70290655,147.08,147.03,10.29780028]
[1768421284759,0.70290655,147.07,147.03,10.29780028]
[1768421284960,0.70290655,147.05,147.0,10.29780028]
[1768421285161,57.7641862,147.15,147.03,10.29780028]
[1768421285162,0.70290655,147.14,147.03,10.29780028]
[1768421285367,0.70290655,147.09,147.03,10.9956798]
[1768421285667,0.70290655,147.07,147.01,0.69787952]
[1768421285970,0.70290655,147.05,147.01,6.80218814]
[1768421286179,0.70290655,147.09,147.03,17.79689192]
[1768421286361,0.70290655,147.08,147.03,17.79689192]
[1768421286673,0.70290655,147.08,147.04,10.9956798]
[1768421287074,11.00070683,147.08,147.03,17.0990124]
[1768421287262,11.00070683,147.08,147.03,6.80121212]
[1768421287470,0.70290655,147.08,147.04,17.09836003]
[1768421288481,0.70290655,147.1,147.05,0.69787952]
[1768421288954,11.00070683,147.12,147.06,10.9956798]
[1768421289150,11.00070683,147.12,147.07,10.9956798]
[1768421289355,0.70290655,147.12,147.08,10.29780028]
[1768421289551,0.70290655,147.12,147.08,17.09650436]
[1768421289782,0.70290655,147.12,147.08,17.79438388]
[1768421289969,0.70290655,147.11,147.06,7.49754305]
[1768421290174,0.70290655,147.11,147.07,6.79946395]
[1768421290371,10.29780028,147.09,147.04,13.09787952]
[1768421290561,11.00070683,147.1,147.05,10.29780028]
[1768421290769,0.70290655,147.1,147.06,7.49750779]
[1768421290977,11.00070683,147.12,147.06,10.9956798]
[1768421291177,0.70290655,147.11,147.07,6.79918084]
[1768421291981,11.00070683,147.13,147.08,10.29780028]
[1768421292189,0.70290655,147.11,147.07,6.79918084]
[1768421292366,0.70290655,147.1,147.06,19.19988924]
[1768421292566,0.70290655,147.16,147.09,10.9956798]
[1768421292888,0.70290655,147.16,147.11,10.9956798]
[1768421293977,0.70290655,147.16,147.12,6.79717237]
[1768421294875,0.70290655,147.16,147.12,17.09497265]
[1768421295477,0.70290655,147.16,147.12,6.79717237]
[1768421295665,0.70290655,147.16,147.12,17.09497265]
[1768421296564,0.70290655,147.16,147.12,10.29780028]
[1768421296763,0.70290655,147.15,147.11,12.4]
[1768421296980,0.70290655,147.15,147.11,22.69780028]
[1768421297693,0.70290655,147.15,147.11,12.4]
[1768421297871,0.70290655,147.15,147.11,29.49537684]
[1768421298072,0.70290655,147.15,147.11,30.19325636]
[1768421299187,0.70290655,147.15,147.11,19.89545608]
[1768421299390,0.70290655,147.14,147.11,12.4]
[1768421299689,0.70290655,147.14,147.11,12.28000012]
[1768421299887,0.70290655,147.13,147.09,6.79838067]
[1768421300388,0.70290655,147.13,147.08,17.79451884]
[1768421300595,0.70290655,147.13,147.09,10.29780028]
[1768421301294,0.70290655,147.13,147.08,17.79451884]
[1768421301774,0.68415561,147.14,147.09,10.96670197]
[1768421302584,0.68415561,147.13,147.08,17.09663932]
[1768421302782,0.68415561,147.13,147.08,17.76554101]
[1768421303096,0.68415561,147.13,147.09,10.96670197]
[1768421303279,0.68415561,147.13,147.07,19.86825961]
[1768421303591,0.68415561,147.12,147.07,29.4971582]
[1768421303794,0.68415561,147.11,147.07,19.19935792]
[1768421304001,0.68415561,147.11,147.07,12.4]
[1768421304587,17.0951407,147.12,147.04,6.8006955]
[1768421304588,0.68415561,147.09,147.04,6.8006955]
[1768421304815,0.68415561,147.08,147.04,6.80045592]
[1768421305778,0.68415561,147.08,147.03,19.87007557]
[1768421305978,10.98195589,147.07,147.01,15.46609347]
[1768421306186,0.68415561,147.05,147.01,6.8019468]
[1768421306387,6.79906557,147.08,146.98,13.06890169]
[1768421306388,0.68415561,147.03,146.98,13.06890169]
[1768421306593,0.68415561,147.03,146.98,30.17005875]
[1768421306771,0.68415561,147.03,146.98,19.87225847]
[1768421306974,0.68415561,147.03,146.98,23.36670197]
[1768421307176,0.68415561,147.02,146.98,19.20358854]
[1768421307705,0.68415561,147.01,146.98,12.4]
[1768421307905,17.78343628,147.03,146.98,12.4]
[1768421308199,46.39490532,147.09,146.98,12.4]
[1768421308200,10.98195589,147.06,147.0,0.66890169]
[1768421308406,10.98195589,147.06,147.0,10.96670197]
[1768421308594,0.68415561,147.07,147.01,10.96670197]
[1768421309183,0.68415561,147.06,147.01,10.96670197]
[1768421309388,0.68415561,147.06,147.01,0.66890169]
[1768421309593,0.68415561,147.08,147.03,17.76784117]
[1768421309785,0.68415561,147.08,147.03,7.47004089]
[1768421310194,0.68415561,147.08,147.03,17.76784117]
[1768421310803,0.68415561,147.1,147.05,0.66890169]
[1768421311002,0.68415561,147.09,147.05,0.66890169]
[1768421311906,0.68415561,147.08,147.03,19.87013871]
[1768421312207,0.68415561,147.07,147.03,12.4]
[1768421312684,0.68415561,147.07,147.03,19.20131396]
[1768421312880,10.98195589,147.09,147.04,6.80079395]
[1768421313098,0.68415561,147.09,147.04,17.09859423]
[1768421313314,0.68415561,147.08,147.03,30.1678739]
[1768421313521,0.68415561,147.08,147.04,6.80080769]
[1768421314387,0.68415561,147.08,147.03,30.16792605]
[1768421315985,0.68415561,147.08,147.03,19.87012577]
[1768421316194,0.68415561,147.08,147.03,30.16792605]
[1768421318417,0.68415561,147.07,147.03,12.4]
[1768421319713,0.68415561,147.05,147.03,12.4]
[1768421320097,0.68415561,147.05,147.0,7.47135365]
[1768421320292,0.68415561,147.04,146.98,17.77019949]
[1768421320601,0.68415561,147.03,146.99,0.66890169]
[1768421321316,0.68415561,147.03,146.99,10.96670197]
[1768421321526,0.68415561,147.03,146.99,17.76979534]
[1768421323199,0.68415561,147.02,146.98,6.80362721]
[1768421324798,0.68415561,147.02,146.97,19.2040072]
[1768421325115,0.68415561,147.02,146.97,25.54313775]
[1768421325303,0.68415561,147.04,146.99,0.66890169]
[1768421325512,7.02328616,147.03,146.98,0.66890169]
[1768421325805,0.68415561,147.03,146.98,13.81166775]
[1768421327105,17.6834174,147.07,146.99,0.66890169]
[1768421327325,0.68415561,147.05,147.0,2.48421448]
[1768421327604,3.16837009,147.05,147.0,7.47148899]
[1768421327812,0.68415561,147.05,147.0,7.47148899]
[1768421328210,3.16837009,147.05,147.0,7.47148899]
[1768421329325,3.16837009,147.07,147.02,0.66890169]
[1768421329622,0.68415561,147.07,147.03,6.80133306]
[1768421330030,0.68415561,147.07,147.03,7.47023475]
[1768421331817,9.28279113,147.09,147.04,0.67732876]
[1768421333411,13.13254933,147.1,147.05,0.67732876]
[1768421333616,13.13157688,147.12,147.07,0.67732876]
[1768421333831,13.82946649,147.12,147.07,0.67732876]
[1768421334039,7.49506198,147.12,147.07,0.67732876]
[1768421334225,0.69788961,147.11,147.07,0.67732876]
[1768421334421,6.33440451,147.1,147.06,0.67732876]
[1768421334722,7.03229412,147.11,147.06,0.67732876]
[1768421335142,7.03229412,147.11,147.06,7.47725024]
[1768421335934,13.82997203,147.11,147.06,7.47725024]
[1768421336242,13.82997203,147.11,147.06,0.67732876]
[1768421337319,7.49556752,147.11,147.06,0.67732876]
[1768421337826,0.69788961,147.11,147.07,0.67732876]
[1768421338153,7.49470575,147.13,147.07,0.67732876]
[1768421338324,7.49470575,147.13,147.08,0.67732876]
[1768421338727,0.69788961,147.13,147.08,0.67732876]
[1768421338944,0.69788961,147.12,147.08,0.67732876]
[1768421339332,0.69788961,147.11,147.07,12.4]
[1768421340041,0.69788961,147.11,147.07,13.07732876]
[1768421340842,0.69788961,147.15,147.08,0.67732876]
[1768421341053,0.69788961,147.15,147.1,0.67732876]
[1768421341348,7.03229412,147.15,147.1,0.67732876]
[1768421341729,0.69788961,147.14,147.1,0.67732876]
[1768421342851,7.49332299,147.16,147.11,7.01173327]
[1768421343153,7.49332299,147.16,147.1,0.67732876]
[1768421343154,7.03229412,147.15,147.1,0.67732876]
[1768421343529,0.69788961,147.14,147.1,0.67732876]
[1768421343935,0.69788961,147.14,147.1,7.47537813]
[1768421344136,0.69788961,147.15,147.1,13.80978264]
[1768421344534,0.69788961,147.15,147.11,0.67732876]
[1768421346051,7.49332299,147.16,147.11,0.67732876]
[1768421347128,13.8277275,147.16,147.11,0.67732876]
[1768421347338,0.69788961,147.15,147.11,0.67732876]
[1768421347654,0.69788961,147.15,147.1,6.33440451]
[1768421347840,0.69788961,147.15,147.1,7.01173327]
[1768421348465,0.69788961,147.12,147.07,26.21093895]
[1768421349143,0.69788961,147.13,147.09,0.67732876]
[1768421349347,0.79788961,147.17,147.11,7.01173327]
[1768421349527,0.69788961,147.16,147.11,7.01173327]
[1768421349727,0.69788961,147.16,147.11,0.67732876]
[1768421351135,0.69788961,147.14,147.1,0.67732876]
[1768421351339,6.79578661,147.15,147.1,0.67732876]
[1768421351552,24.02122235,147.16,147.11,7.01173327]
[1768421351553,7.49334268,147.16,147.11,7.01173327]
[1768421351744,0.69788961,147.15,147.11,6.95173329]
[1768421352150,0.69788961,147.15,147.11,0.61732878]
[1768421352350,0.69788961,147.15,147.1,13.13245772]
[1768421352956,0.69788961,147.15,147.11,6.33440451]
[1768421353159,0.69788961,147.15,147.1,6.79805321]
[1768421353375,7.49382608,147.15,147.11,2.48051763]
[1768421354257,7.49382608,147.15,147.1,9.9558996]
[1768421354646,0.69788961,147.15,147.1,9.9558996]
[1768421354847,0.69788961,147.15,147.11,3.15784639]
[1768421355161,7.59292434,147.17,147.12,2.48051763]
[1768421355470,0.79788961,147.17,147.12,3.15784639]
[1768421355846,0.79788961,147.17,147.13,2.48051763]
[1768421356343,0.79788961,147.17,147.12,3.15784639]
[1768421356557,7.59279458,147.17,147.12,9.95500628]
[1768421357271,0.79788961,147.17,147.13,3.15784639]
[1768421358880,0.1,147.17,147.15,3.15784639]
[1768421359168,0.69788961,147.19,147.13,0.67732876]
[1768421359345,0.69788961,147.18,147.13,6.79656856]
[1768421359545,0.69788961,147.18,147.13,9.95441495]
[1768421359753,0.69788961,147.18,147.13,3.15784639]
[1768421360161,0.69788961,147.18,147.13,9.95433811]
[1768421361157,0.67593459,147.17,147.13,0.67732876]
[1768421361369,0.67593459,147.21,147.15,0.68384674]
[1768421361674,0.67593459,147.21,147.15,3.16436437]
[1768421362568,0.67593459,147.2,147.15,7.47935602]
[1768421363162,0.67593459,147.2,147.16,0.68384674]
[1768421363562,7.46945344,147.2,147.16,0.68384674]
[1768421364769,7.46945344,147.2,147.15,6.79550928]
[1768421365150,0.67593459,147.2,147.15,7.47935602]
[1768421365351,0.67593459,147.2,147.16,0.68384674]
[1768421366574,0.67593459,147.2,147.16,7.47913244]
[1768421366750,0.67593459,147.19,147.14,0.68384674]
[1768421366946,0.67593459,147.18,147.12,91.5763072]
[1768421367148,0.67593459,147.18,147.12,32.55682483]
[1768421367366,0.67593459,147.18,147.13,6.79641381]
[1768421367769,0.67593459,147.18,147.13,7.48026055]
[1768421368073,6.79360682,147.2,147.13,7.48026055]
[1768421368074,9.95005904,147.2,147.15,7.47962929]
[1768421368279,7.46954141,147.2,147.15,7.47962929]
[1768421368576,0.67593459,147.2,147.15,7.47962929]
[1768421368949,7.46865545,147.22,147.16,0.68384674]
[1768421369155,0.67593459,147.21,147.16,0.68384674]
[1768421369571,0.67593459,147.23,147.18,0.68384674]
[1768421370677,0.67593459,147.23,147.19,0.68384674]
[1768421370868,0.67593459,147.21,147.17,12.38]
[1768421371285,0.67593459,147.21,147.16,0.68384674]
[1768421371581,0.67593459,147.2,147.15,19.85929376]
[1768421372079,0.67593459,147.19,147.15,19.85929376]
[1768421372278,3.15645222,147.21,147.16,0.68384674]
[1768421372475,6.79347826,147.2,147.16,0.68384674]
[1768421372662,0.67593459,147.22,147.16,2.48051763]
[1768421372856,0.67593459,147.21,147.15,22.33996389]
[1768421373068,0.67593459,147.2,147.15,12.38]
[1768421373284,0.67593459,147.2,147.15,13.06384674]
[1768421373582,0.67593459,147.2,147.12,7.99524498]
[1768421373583,0.67593459,147.18,147.12,8.67909172]
[1768421373763,0.67593459,147.18,147.13,12.38]
[1768421373962,0.67593459,147.18,147.13,13.06384674]
[1768421374277,0.67593459,147.18,147.13,19.86025433]
[1768421374783,0.67593459,147.2,147.14,0.68384674]
[1768421375471,7.46946493,147.2,147.15,0.68384674]
[1768421375673,0.67593459,147.21,147.16,0.68384674]
[1768421376873,0.67593459,147.23,147.17,0.68384674]
[1768421377074,0.67593459,147.23,147.18,0.68384674]
[1768421377464,0.67593459,147.23,147.19,0.68384674]
[1768421377680,7.56742824,147.25,147.19,0.68384674]
[1768421377861,7.56742824,147.25,147.19,3.16436437]
[1768421378061,0.67593459,147.24,147.19,3.16436437]
[1768421378261,0.67593459,147.24,147.19,0.68384674]
[1768421378780,6.89149365,147.25,147.21,9.95709417]
[1768421378781,0.1,147.25,147.21,9.95709417]
[1768421379081,0.1,147.25,147.21,7.47657654]
[1768421379286,0.1,147.25,147.21,9.95709417]
[1768421379474,0.77593459,147.25,147.21,0.68384674]
[1768421379891,0.77593459,147.25,147.21,7.47674224]
[1768421381266,0.67593459,147.24,147.19,0.68384674]
[1768421381583,0.67593459,147.24,147.2,0.68384674]
[1768421381788,0.67593459,147.24,147.18,15.54436437]
[1768421382094,0.67593459,147.23,147.19,0.68384674]
[1768421382467,0.67593459,147.23,147.18,19.85813632]
[1768421382809,0.67593459,147.22,147.18,13.06384674]
[1768421383471,7.46871921,147.22,147.17,12.38]
[1768421383792,7.46871921,147.22,147.17,13.06384674]
[1768421383970,0.67593459,147.22,147.17,19.85861318]
[1768421384170,0.67593459,147.22,147.18,0.68384674]
[1768421384872,3.15645222,147.2,147.17,12.38]
[1768421385072,3.15645222,147.19,147.14,6.79607058]
[1768421385279,3.15645222,147.19,147.14,19.85991732]
[1768421385479,4.55033548,147.19,147.14,19.85991732]
[1768421385674,11.34462253,147.19,147.14,13.06384674]
[1768421385877,0.67593459,147.17,147.12,13.06384674]
[1768421386098,0.67593459,147.15,147.12,12.38]
[1768421386400,23.77913656,147.19,147.12,12.38]
[1768421386401,0.67593459,147.14,147.12,12.38]
[1768421386578,4.55033548,147.14,147.12,12.38]
[1768421386888,0.67593459,147.12,147.07,7.48303751]
[1768421387072,3.87440089,147.13,147.07,7.48303751]
[1768421387073,4.55033548,147.14,147.09,0.68384674]
[1768421387467,4.55033548,147.14,147.09,7.48225709]
[1768421387874,11.34663462,147.14,147.09,7.48225709]
[1768421388787,0.67593459,147.12,147.08,0.68384674]
[1768421388987,4.55033548,147.12,147.08,0.68384674]
[1768421389167,0.67593459,147.11,147.07,19.17916419]
[1768421389583,0.67593459,147.11,147.07,19.86301093]
[1768421389788,3.87440089,147.12,147.07,19.86301093]
[1768421389994,4.55033548,147.14,147.08,0.68384674]
[1768421390287,0.67593459,147.14,147.08,0.68384674]
[1768421390491,4.55033548,147.14,147.08,0.68384674]
[1768421391482,0.7057609,147.13,147.08,0.68384674]
[1768421392088,0.7057609,147.13,147.09,7.51177345]
[1768421393089,3.87440089,147.14,147.09,7.51177345]
[1768421394097,3.87440089,147.14,147.1,0.71321475]
[1768421395073,4.58016179,147.14,147.1,0.71321475]
[1768421395585,11.37643378,147.14,147.1,0.71321475]
[1768421395788,4.58016179,147.14,147.1,0.71321475]
[1768421395991,4.58016179,147.12,147.08,0.71321475]
[1768421396289,10.67129093,147.13,147.08,0.71321475]
[1768421396481,10.67129093,147.13,147.08,7.51210175]
[1768421396684,10.67129093,147.13,147.09,0.71321475]
[1768421397402,0.7057609,147.1,147.07,12.38]
[1768421397568,4.58016179,147.09,147.05,4.25463795]
[1768421397772,0.67576088,147.09,147.05,23.43472761]
[1768421398078,4.55016177,147.09,147.05,23.43472761]
[1768421398392,3.87440089,147.09,147.05,23.43472761]
[1768421399097,3.87440089,147.09,147.05,16.63463795]
[1768421399297,16.98987835,147.15,147.07,0.71321475]
[1768421399601,3.87440089,147.12,147.07,0.71321475]
[1768421399806,4.58016179,147.11,147.07,0.71321475]
[1768421400187,0.7057609,147.1,147.06,12.4]
[1768421400382,0.7057609,147.09,147.06,12.4]
[1768421400580,0.7057609,147.09,147.05,22.74179311]
[1768421400782,4.58016179,147.09,147.05,16.65463795]
[1768421401182,4.58016179,147.08,147.05,3.5414232]
[1768421401394,0.7057609,147.08,147.05,3.5414232]
[1768421401811,4.58016179,147.08,147.05,3.5414232]
[1768421402001,4.58016179,147.07,147.03,19.20121475]
[1768421402198,0.7057609,147.07,147.03,13.11321475]
[1768421402389,4.58016179,147.09,147.04,0.71321475]
[1768421402586,0.7057609,147.09,147.04,0.71321475]
[1768421402798,0.7057609,147.09,147.04,4.58761564]